bitfinex/quotes_ETHUSD_20250824
["timestamp","ask_amount","ask_price","bid_price","bid_amount"]
[1756053883330,7.2522,4833.6,4833.5,0.3028]
[1756053884055,7.149,4833.6,4833.5,0.3028]
[1756053888365,0.002,4833.8,4833.5,0.3028]
[1756053889240,0.002,4833.8,4833.2,0.1032]
[1756053889862,0.2885,4833.3,4833.2,0.1032]
[1756053890070,6.9145,4833.3,4833.2,0.1032]
[1756053890367,7.4652,4833.3,4832.8,0.021]
[1756053890567,0.4475,4833.2,4832.8,0.021]
[1756053890972,0.4475,4833.1,4832.8,0.021]
[1756053891939,6.7292,4833.3,4833.0,0.2867]
[1756053892474,0.1032,4833.3,4832.8,0.021]
[1756053892838,0.5609,4833.3,4832.8,0.021]
[1756053893260,0.1032,4833.3,4832.8,0.021]
[1756053893877,0.4577,4833.2,4832.8,0.021]
[1756053894549,0.1032,4833.3,4832.8,0.021]
[1756053894760,0.2978,4832.9,4832.8,0.021]
[1756053895483,0.7555,4832.9,4832.8,0.021]
[1756053895989,4.3755,4832.9,4832.8,0.021]
[1756053897090,7.3755,4832.9,4832.8,0.021]
[1756053897987,8.0355,4832.9,4832.8,0.021]
[1756053899682,38.0355,4832.9,4832.8,0.021]
[1756053900094,54.41142946,4832.9,4832.8,0.021]
[1756053900293,55.05189019,4832.9,4832.8,0.021]
[1756053900475,55.13485019,4832.9,4832.8,0.021]
[1756053900846,55.05189019,4832.9,4832.8,0.021]
[1756053901083,55.05194738,4832.9,4832.8,0.021]
[1756053902064,57.1210984,4832.9,4832.8,0.021]
[1756053902286,55.05194738,4832.9,4832.8,0.021]
[1756053902473,53.80894738,4832.9,4832.8,0.021]
[1756053902686,33.49164601,4832.9,4832.8,0.021]
[1756053902865,7.018,4832.9,4832.8,0.021]
[1756053903065,0.1032,4832.9,4832.8,0.3077]
[1756053903381,0.1032,4832.9,4832.8,0.7501]
[1756053903616,3.617,4833.5,4832.8,0.3077]
[1756053903765,3.0,4833.4,4832.9,0.1032]
[1756053903953,3.617,4833.5,4832.9,0.1032]
[1756053904457,3.0,4833.4,4832.9,0.1032]
[1756053904657,3.617,4833.3,4832.9,0.1032]
[1756053904898,3.617,4833.3,4833.2,0.2867]
[1756053905193,3.0,4833.4,4833.2,0.2867]
[1756053905749,0.2978,4833.3,4832.9,0.1032]
[1756053905952,0.1032,4833.1,4832.8,0.021]
[1756053908155,0.2978,4832.9,4832.8,0.021]
[1756053908393,3.9578,4832.9,4832.8,0.021]
[1756053908752,4.4155,4832.9,4832.8,0.021]
[1756053910322,50.87438846,4832.9,4832.8,0.021]
[1756053911015,58.02338846,4832.9,4832.8,0.021]
[1756053911393,0.3499,4832.8,4832.3,0.001]
[1756053911610,1.061,4832.4,4832.3,0.001]
[1756053911907,44.828,4832.4,4832.3,0.001]
[1756053912076,45.2857,4832.4,4832.3,0.001]
[1756053912482,45.368664,4832.4,4832.3,0.001]
[1756053914390,45.2857,4832.4,4832.3,0.001]
[1756053914591,44.828,4832.4,4832.3,0.001]
[1756053914911,15.2857,4832.4,4832.3,0.001]
[1756053915289,14.828,4832.4,4832.3,0.001]
[1756053915921,13.8702,4832.4,4832.3,0.2877]
[1756053916088,13.8702,4832.4,4832.3,0.001]
[1756053916477,14.168,4832.4,4832.3,0.001]
[1756053916907,13.8702,4832.4,4832.3,0.001]
[1756053917125,14.168,4832.4,4832.3,0.001]
[1756053917415,15.2857,4832.4,4832.3,0.001]
[1756053920624,14.828,4832.4,4832.3,0.001]
[1756053920987,15.2857,4832.4,4832.3,0.001]
[1756053921726,14.82239905,4832.4,4832.3,0.001]
[1756053922022,13.86459905,4832.4,4832.3,0.3086]
[1756053923030,13.86459905,4832.4,4832.3,0.001]
[1756053923224,13.86459905,4832.4,4832.3,0.3086]
[1756053923431,14.15509905,4832.4,4832.3,0.001]
[1756053923653,14.60759905,4832.4,4832.3,0.001]
[1756053923785,22.11712499,4832.4,4832.3,0.001]
[1756053923985,15.26759905,4832.4,4832.3,0.001]
[1756053925034,14.52459905,4832.4,4832.3,0.001]
[1756053925683,14.52459905,4832.4,4832.3,0.3086]
[1756053925684,10.2522,4832.4,4832.3,0.3086]
[1756053926724,10.149,4832.4,4832.3,0.3086]
[1756053926887,7.149,4832.4,4832.3,0.3086]
[1756053927825,7.149,4832.4,4832.3,0.7757]
[1756053928738,7.149,4832.4,4832.3,1.07054685]
[1756053928942,0.3499,4832.8,4832.3,0.8789]
[1756053929224,0.3499,4832.8,4832.4,2.53642922]
[1756053929431,0.3499,4832.8,4832.7,0.4108]
[1756053929787,0.3499,4832.8,4832.7,0.8779]
[1756053933228,0.3499,4832.8,4832.7,2.94713665]
[1756053933598,0.3499,4832.8,4832.7,3.40105031]
[1756053936000,0.3499,4832.8,4832.7,7.01705031]
[1756053936946,0.3499,4832.8,4832.7,2.93395031]
[1756053937115,0.3499,4832.8,4832.7,0.3076]
[1756053937313,0.3499,4832.8,4832.3,1.9419]
[1756053937515,0.6404,4832.8,4832.3,0.001]
[1756053937731,0.4525,4832.7,4832.3,0.001]
[1756053937901,0.2905,4832.4,4832.3,0.001]
[1756053938108,0.4525,4832.6,4832.3,0.001]
[1756053938444,0.3499,4832.8,4832.3,0.3086]
[1756053939254,0.8024,4832.8,4832.3,0.3086]
[1756053939822,0.8024,4832.8,4832.3,0.001]
[1756053940121,0.4525,4832.7,4832.3,0.001]
[1756053940346,0.2905,4832.4,4832.3,0.001]
[1756053941828,0.743,4832.4,4832.3,0.001]
[1756053943559,0.2905,4832.4,4832.3,0.001]
[1756053944056,0.743,4832.4,4832.3,0.001]
[1756053944860,0.8044,4832.8,4832.3,0.001]
[1756053945044,0.2905,4832.4,4832.3,0.001]
[1756053945468,0.3519,4832.8,4832.7,0.0752]
[1756053945765,0.6424,4832.8,4832.7,0.0752]
[1756053945925,1.0949,4832.8,4832.7,0.0752]
[1756053948325,0.6424,4832.8,4832.7,0.0752]
[1756053948525,1.0949,4832.8,4832.7,0.0752]
[1756053954081,0.6424,4832.8,4832.7,0.0752]
[1756053954581,1.1075,4832.8,4832.7,0.0752]
[1756053956285,0.3519,4832.8,4832.7,0.0752]
[1756053956455,0.3519,4832.8,4832.7,0.387]
[1756053956847,0.3519,4832.8,4832.7,0.0752]
[1756053957189,0.7591,4832.8,4832.7,0.0752]
[1756053957781,0.4551,4832.8,4832.7,0.0752]
[1756053961603,0.4551,4832.8,4832.7,0.387]
[1756053961808,0.3519,4832.8,4832.7,0.387]
[1756053962106,0.3519,4832.8,4832.7,0.8457]
[1756053962526,0.3519,4832.8,4832.7,3.21686616]
[1756053962974,0.3519,4832.8,4832.7,3.32006616]
[1756053963177,0.3519,4832.8,4832.7,1.25082951]
[1756053963400,0.3519,4832.8,4832.7,0.9489]
[1756053964041,0.3519,4832.8,4832.7,3.01813665]
[1756053966111,1.121,4832.8,4832.7,0.0752]
[1756053968008,0.6559,4832.8,4832.7,0.0752]
[1756053969222,1.121,4832.8,4832.7,0.0752]
[1756053969405,0.6559,4832.8,4832.7,0.0752]
[1756053970242,1.121,4832.8,4832.7,0.0752]
[1756053972151,7.732,4832.8,4832.7,0.0752]
[1756053972826,7.8352,4832.8,4832.7,0.0752]
[1756053974337,8.4952,4832.8,4832.7,0.0752]
[1756053974522,40.3788983,4832.8,4832.7,0.0752]
[1756053974718,0.66,4832.5,4832.3,0.001]
[1756053974916,43.83967451,4832.4,4832.3,0.001]
[1756053975134,44.75155307,4832.4,4832.3,0.001]
[1756053975346,44.85475307,4832.4,4832.3,0.001]
[1756053976823,42.84855307,4832.4,4832.3,0.001]
[1756053977019,12.31105477,4832.4,4832.3,0.001]
[1756053977680,15.92205477,4832.4,4832.3,0.001]
[1756053978736,16.58205477,4832.4,4832.3,0.001]
[1756053979535,46.58205477,4832.4,4832.3,0.001]
[1756053980132,42.31105477,4832.4,4832.3,0.001]
[1756053980332,38.6092,4832.4,4832.3,0.001]
[1756053980553,8.3052,4832.4,4832.3,0.001]
[1756053980757,8.6092,4832.4,4832.3,0.001]
[1756053980965,15.7582,4832.4,4832.3,0.001]
[1756053981373,16.2233,4832.4,4832.3,0.001]
[1756053982440,16.966256,4832.4,4832.3,0.001]
[1756053982677,46.966256,4832.4,4832.3,0.001]
[1756053984163,4.0299,4832.3,4831.9,0.001]
[1756053984363,10.25435477,4832.0,4831.9,0.001]
[1756053984567,13.86435477,4832.0,4831.9,0.001]
[1756053984767,14.40371777,4832.0,4831.9,0.001]
[1756053984943,22.21271777,4832.0,4831.9,0.001]
[1756053985341,20.99311777,4832.0,4831.9,0.001]
[1756053985546,21.09631777,4832.0,4831.9,0.001]
[1756053985742,13.945163,4832.0,4831.9,0.001]
[1756053986278,13.945163,4832.0,4831.9,0.2921]
[1756053986443,10.335163,4832.0,4831.9,0.2921]
[1756053986649,10.2522,4832.0,4831.9,0.2921]
[1756053987381,11.012,4832.0,4831.9,0.001]
[1756053987946,10.5556,4832.0,4831.9,0.001]
[1756053988146,14.622,4832.0,4831.9,0.001]
[1756053988549,14.704956,4832.0,4831.9,0.001]
[1756053989166,13.841956,4832.0,4831.9,0.001]
[1756053989399,13.945156,4832.0,4831.9,0.001]
[1756053990083,13.945156,4832.0,4831.9,0.2921]
[1756053990479,13.945156,4832.0,4831.9,0.001]
[1756053991111,21.55271077,4832.0,4831.9,0.001]
[1756053991402,21.09631077,4832.0,4831.9,0.001]
[1756053991605,21.55271077,4832.0,4831.9,0.001]
[1756053991969,14.40371077,4832.0,4831.9,0.001]
[1756053994501,3.3699,4831.9,4831.4,0.001]
[1756053995411,3.6733,4831.9,4831.4,0.001]
[1756053995904,4.1297,4831.9,4831.4,0.001]
[1756053996072,4.212664,4831.9,4831.4,0.001]
[1756053996476,3.756264,4831.9,4831.4,0.001]
[1756053997784,4.212664,4831.9,4831.4,0.001]
[1756053998401,36.115664,4831.9,4831.4,0.001]
[1756053998708,36.75596417,4831.9,4831.4,0.001]
[1756053999769,4.243,4831.7,4831.4,0.001]
[1756053999970,12.15735477,4831.5,4831.4,0.001]
[1756054000169,44.38865494,4831.5,4831.4,0.001]
[1756054000397,44.92803694,4831.5,4831.4,0.001]
[1756054001607,44.92814285,4831.5,4831.4,0.001]
[1756054001923,46.99789344,4831.5,4831.4,0.001]
[1756054002296,47.7490626,4831.5,4831.4,0.001]
[1756054002809,45.67931201,4831.5,4831.4,0.001]
[1756054003929,47.7490626,4831.5,4831.4,0.001]
[1756054004133,45.48540873,4831.5,4831.4,0.001]
[1756054004326,45.67925806,4831.5,4831.4,0.001]
[1756054005335,5.2729,4831.4,4831.3,0.001]
[1756054005649,42.34989951,4831.4,4831.3,0.001]
[1756054005938,6.97296481,4831.0,4830.9,0.001]
[1756054006103,49.03290134,4831.0,4830.9,0.001]
[1756054006297,47.61304859,4831.0,4830.9,0.001]
[1756054007140,49.48930134,4831.0,4830.9,0.001]
[1756054007302,48.93112566,4831.0,4830.9,0.001]
[1756054008036,48.93112566,4831.0,4830.1,0.001]
[1756054008037,5.73022192,4830.4,4830.1,0.001]
[1756054008254,53.79956085,4830.4,4830.1,0.001]
[1756054008408,54.25596085,4830.4,4830.1,0.001]
[1756054008618,0.66,4830.2,4828.7,0.4639]
[1756054008800,3.0,4829.5,4828.7,0.4639]
[1756054009013,3.0,4829.5,4829.4,0.2911]
[1756054009215,6.606,4829.5,4829.4,0.2911]
[1756054009417,6.7092,4829.5,4829.4,0.2911]
[1756054009756,0.725736,4829.5,4829.4,0.2911]
[1756054009956,3.725736,4829.5,4829.4,0.2911]
[1756054010357,3.87820125,4829.5,4829.4,0.2911]
[1756054010716,3.87820125,4829.5,4828.7,0.4679]
[1756054011036,3.0,4829.3,4828.7,0.4679]
[1756054011366,0.87820125,4829.5,4829.2,0.2911]
[1756054011566,0.77500125,4829.5,4829.2,0.2911]
[1756054011763,0.1032,4829.3,4829.2,0.2911]
[1756054012567,0.72574,4829.3,4829.2,0.2911]
[1756054013143,0.72574,4829.3,4828.9,0.46]
[1756054013144,0.0798,4829.2,4828.9,0.46]
[1756054013345,0.0798,4829.2,4829.1,0.2904]
[1756054013746,0.805541,4829.2,4829.1,0.2904]
[1756054014272,7.411541,4829.2,4829.1,0.2904]
[1756054014770,3.805541,4829.2,4829.1,0.2904]
[1756054016068,3.702341,4829.2,4829.1,0.2904]
[1756054018992,3.0,4829.1,4828.2,0.001]
[1756054019206,6.606,4829.1,4828.3,0.1992]
[1756054019375,6.606,4829.1,4829.0,0.2904]
[1756054019706,3.6848,4829.2,4829.0,0.2904]
[1756054019861,0.2904,4829.1,4829.0,0.2904]
[1756054020496,0.2904,4829.1,4829.0,0.4896]
[1756054020803,0.2904,4829.1,4829.0,0.2904]
[1756054021373,0.2904,4829.1,4828.2,0.001]
[1756054021374,0.582,4829.1,4828.2,0.001]
[1756054021566,11.50565477,4829.1,4828.2,0.001]
[1756054021766,6.84775477,4828.6,4828.2,0.001]
[1756054021965,3.0,4828.4,4828.2,0.001]
[1756054022730,0.1992,4828.3,4828.2,0.001]
[1756054023288,0.4908,4828.3,4828.2,0.001]
[1756054023466,4.0958,4828.3,4828.2,0.001]
[1756054023862,4.5667,4828.3,4828.2,0.001]
[1756054024687,4.0958,4828.3,4828.2,0.001]
[1756054025387,4.5667,4828.3,4828.2,0.001]
[1756054025922,3.8042,4828.3,4828.2,0.001]
[1756054026088,3.9074,4828.3,4828.2,0.001]
[1756054026704,0.1992,4828.3,4828.2,0.2914]
[1756054026943,0.15246525,4829.5,4828.2,0.4906]
[1756054027120,0.1032,4828.8,4828.3,0.1992]
[1756054027320,0.1032,4828.8,4828.2,0.2914]
[1756054027321,0.1032,4828.8,4828.7,0.2904]
[1756054027503,3.1032,4828.8,4828.2,0.001]
[1756054027709,3.604,4828.7,4828.2,0.001]
[1756054029228,3.0,4828.6,4828.2,0.001]
[1756054029550,3.0,4828.6,4828.5,0.2904]
[1756054029757,3.1032,4828.8,4828.5,0.2904]
[1756054030137,3.1032,4828.8,4828.6,0.1992]
[1756054030138,0.1032,4828.8,4828.6,0.1992]
[1756054030325,0.1032,4829.0,4828.7,0.2904]
[1756054030530,0.2904,4829.1,4828.7,0.2904]
[1756054030709,0.1032,4829.5,4828.8,0.1992]
[1756054031059,3.3936,4829.5,4829.4,0.2904]
[1756054031214,3.1032,4829.7,4829.4,0.2904]
[1756054031552,0.3024,4829.6,4829.4,0.2904]
[1756054032553,3.1032,4829.7,4829.4,0.2904]
[1756054032856,3.1032,4829.7,4828.8,0.1032]
[1756054033348,3.4056,4829.7,4828.8,0.1032]
[1756054036146,3.8765,4829.7,4828.8,0.1032]
[1756054036731,3.4056,4829.7,4828.8,0.1032]
[1756054037028,0.1032,4829.3,4828.6,0.1032]
[1756054037434,0.4709,4829.2,4828.6,0.1032]
[1756054037649,4.0729,4829.2,4828.2,0.001]
[1756054037846,0.1032,4829.0,4828.3,0.1032]
[1756054038569,1.093409,4828.9,4828.2,0.001]
[1756054038723,0.1032,4828.7,4828.2,0.001]
[1756054040361,0.1032,4828.7,4828.6,0.2904]
[1756054040536,0.622509,4828.9,4828.6,0.3936]
[1756054042864,0.002,4829.2,4828.7,0.1992]
[1756054043167,0.002,4829.2,4829.1,0.4078]
[1756054044672,0.002,4829.2,4829.1,2.74637412]
[1756054044967,0.002,4829.2,4829.1,0.87479489]
[1756054045313,0.002,4829.2,4829.1,2.94557412]
[1756054045424,0.002,4829.2,4829.1,0.87479489]
[1756054045625,0.002,4829.2,4829.1,2.74637412]
[1756054045826,0.002,4829.2,4829.1,2.94557412]
[1756054046866,0.002,4829.2,4829.1,2.74637412]
[1756054047063,0.002,4829.2,4829.1,2.94557412]
[1756054048831,0.002,4829.2,4829.1,6.54457412]
[1756054050377,0.002,4829.2,4829.1,0.87479489]
[1756054050536,0.002,4829.2,4829.1,4.27359489]
[1756054051585,0.002,4829.2,4829.1,6.34437412]
[1756054052069,0.002,4829.2,4829.1,0.1032]
[1756054052368,0.7229,4829.2,4829.1,0.1032]
[1756054052677,0.002,4829.2,4829.1,0.1032]
[1756054053186,0.7229,4829.2,4829.1,0.1032]
[1756054053959,0.002,4829.2,4829.1,0.1032]
[1756054054662,0.002,4829.2,4829.1,0.4078]
[1756054054874,0.2893,4829.2,4829.1,0.1032]
[1756054055075,0.7229,4829.2,4829.1,0.1032]
[1756054056086,0.002,4829.2,4829.1,0.1032]
[1756054056290,0.2893,4829.2,4829.1,0.1032]
[1756054056456,0.7229,4829.2,4829.1,0.1032]
[1756054057266,0.002,4829.2,4829.1,0.1032]
[1756054058591,0.002,4829.2,4829.1,0.3046]
[1756054058789,0.002,4829.2,4829.1,4.46073923]
[1756054061065,0.002,4829.2,4829.1,8.05573923]
[1756054063715,0.2893,4829.2,4829.1,1.6952]
[1756054064033,0.7229,4829.2,4828.9,3.6972]
[1756054064542,0.4336,4829.1,4828.9,3.6972]
[1756054064743,0.2873,4829.0,4828.9,3.6972]
[1756054065838,0.7209,4829.0,4828.9,3.6972]
[1756054067239,0.7209,4829.0,4828.9,0.1032]
[1756054069722,0.002,4829.2,4828.9,0.1032]
[1756054071031,0.4356,4829.2,4828.9,0.1032]
[1756054071660,0.2873,4829.0,4828.9,0.1032]
[1756054072150,0.7549,4829.0,4828.9,3.6952]
[1756054072551,0.7549,4829.0,4828.9,0.1032]
[1756054072754,0.7549,4829.0,4828.8,3.593]
[1756054073051,0.4676,4828.9,4828.8,3.593]
[1756054073251,0.7695,4828.9,4828.8,3.593]
[1756054073952,0.002,4829.2,4828.8,3.9842]
[1756054074160,0.4696,4829.2,4828.8,3.9842]
[1756054074327,0.4676,4829.1,4828.8,3.6962]
[1756054074857,0.624441,4829.2,4828.9,3.591]
[1756054075050,0.4696,4829.2,4828.9,3.591]
[1756054075260,0.4696,4829.2,4829.1,0.1032]
[1756054075473,0.7715,4829.2,4829.1,0.1032]
[1756054075861,0.7715,4829.2,4829.1,0.3912]
[1756054075862,0.002,4829.2,4829.1,0.3912]
[1756054076426,0.002,4829.2,4829.1,0.1032]
[1756054076780,0.002,4829.2,4829.1,3.6942]
[1756054076781,0.4696,4829.2,4829.1,3.6942]
[1756054077079,0.7715,4829.2,4829.1,3.6942]
[1756054078746,0.7715,4829.2,4829.1,0.1032]
[1756054078944,0.7715,4829.2,4829.1,3.6932]
[1756054080381,0.002,4829.2,4829.1,0.1032]
[1756054080580,0.002,4829.2,4829.1,3.6932]
[1756054081084,0.7715,4829.2,4829.1,3.6932]
[1756054081390,0.7715,4829.2,4829.1,3.6188]
[1756054082067,0.7715,4829.2,4829.1,3.589]
[1756054082585,0.002,4829.2,4829.1,3.9802]
[1756054082950,0.002,4829.2,4829.1,3.6922]
[1756054085384,0.002,4829.2,4829.1,3.9792]
[1756054085758,0.002,4829.2,4829.1,3.6912]
[1756054086581,0.3039,4829.2,4829.1,3.6912]
[1756054086743,0.002,4829.2,4829.1,3.6912]
[1756054087396,0.002,4829.2,4829.1,2.55951061]
[1756054087681,0.002,4829.2,4829.1,5.2832]
[1756054087843,0.002,4829.2,4829.1,1.6952]
[1756054088045,0.002,4829.2,4828.8,0.001]
[1756054088046,7.61925477,4829.2,4828.8,0.001]
[1756054088289,0.1032,4828.9,4828.8,0.001]
[1756054088495,0.3019,4828.9,4828.8,0.001]
[1756054088787,0.002,4829.2,4828.8,0.1042]
[1756054088945,0.002,4829.2,4828.8,0.3922]
[1756054089580,0.4696,4829.2,4828.8,0.3922]
[1756054089788,0.002,4829.2,4828.8,0.3922]
[1756054089998,0.4696,4829.2,4828.9,3.587]
[1756054090885,0.4676,4829.1,4828.9,3.587]
[1756054091208,0.7695,4829.0,4828.9,3.587]
[1756054093420,0.002,4829.2,4828.9,3.587]
[1756054093786,0.4696,4829.2,4828.9,3.587]
[1756054094091,0.002,4829.2,4828.9,3.587]
[1756054095044,0.002,4829.2,4829.1,0.1032]
[1756054095836,0.002,4829.2,4829.1,3.6892]
[1756054096807,0.002,4829.2,4829.1,0.1032]
[1756054097032,0.002,4829.2,4829.1,3.6892]
[1756054097748,0.002,4829.2,4829.1,3.6882]
[1756054104864,0.002,4829.2,4829.1,3.6892]
[1756054105045,0.002,4829.2,4829.1,3.9962]
[1756054105245,0.002,4829.2,4829.1,4.60301065]
[1756054106067,0.002,4829.2,4829.1,6.67378988]
[1756054106246,0.002,4829.2,4829.1,4.60301065]
[1756054108231,0.002,4829.2,4829.1,6.67378988]
[1756054108666,0.002,4829.2,4829.1,6.87298988]
[1756054109454,0.002,4829.2,4829.1,6.67378988]
[1756054110057,0.002,4829.2,4829.1,9.87298988]
[1756054110872,0.002,4829.2,4829.1,9.67378988]
[1756054111054,0.002,4829.2,4829.1,6.08878988]
[1756054111691,0.002,4829.2,4829.1,9.86898988]
[1756054112181,0.002,4829.2,4829.1,10.52898988]
[1756054112357,0.002,4829.2,4829.1,10.61194688]
[1756054112560,0.002,4829.2,4829.1,7.03094688]
[1756054112951,0.002,4829.2,4829.1,10.61194688]
[1756054113672,1e-08,4829.2,4829.1,10.61194688]
[1756054113879,1e-08,4829.2,4829.1,17.45970165]
[1756054116871,1e-08,4829.2,4829.1,19.64170165]
[1756054117588,1e-08,4829.2,4829.1,17.25850165]
[1756054117912,1e-08,4829.2,4829.1,17.45770165]
[1756054118709,1e-08,4829.2,4829.1,13.87870165]
[1756054118912,1e-08,4829.2,4829.1,17.45770165]
[1756054120120,1e-08,4829.2,4829.1,19.63970165]
[1756054120487,0.002,4829.7,4829.1,19.63970165]
[1756054120694,0.002,4829.7,4829.6,5.07056485]
[1756054121001,0.002,4829.7,4829.6,17.49851962]
[1756054121516,0.002,4829.7,4829.6,17.78066262]
[1756054122184,1e-08,4829.8,4829.7,5.73052197]
[1756054122385,0.002,4830.7,4829.7,5.73052197]
[1756054122386,0.002,4830.7,4830.6,5.73013621]
[1756054122586,0.002,4832.3,4830.9,2.73000765]
[1756054122901,1e-08,4831.0,4830.9,9.61500765]
[1756054123114,1e-08,4831.0,4830.9,9.91740765]
[1756054123284,1e-08,4831.5,4831.4,4.91179343]
[1756054123488,1e-08,4831.5,4831.4,19.53792754]
[1756054123721,1e-08,4831.5,4831.4,19.73712754]
[1756054124533,1e-08,4831.5,4831.4,19.82003254]
[1756054126635,1e-08,4831.5,4831.4,17.38883254]
[1756054126839,1e-08,4831.5,4831.4,17.58803254]
[1756054127524,1e-08,4831.8,4831.7,2.72966492]
[1756054127725,1e-08,4831.8,4831.7,13.34554292]
[1756054127913,0.002,4832.7,4832.5,3.66]
[1756054128136,0.002,4832.7,4832.6,18.05003424]
[1756054128525,0.002,4832.7,4832.6,18.23612224]
[1756054129304,0.002,4832.7,4832.6,18.15323424]
[1756054129508,0.4636,4833.5,4833.1,5.7290654]
[1756054129708,0.4636,4833.5,4833.1,16.15182017]
[1756054129909,0.4636,4833.5,4833.1,16.25502017]
[1756054130103,0.7686,4833.2,4833.1,16.25502017]
[1756054130304,0.7686,4833.2,4833.1,16.25402017]
[1756054130645,0.7686,4833.2,4833.1,3.6772]
[1756054130842,0.7686,4833.2,4833.1,2.1722654]
[1756054131042,0.7686,4833.2,4833.1,3.6772]
[1756054131345,0.7686,4833.2,4833.1,5.7462654]
[1756054131644,0.305,4833.2,4833.1,15.59402017]
[1756054131843,0.002,4833.2,4833.1,18.3273355]
[1756054133318,0.3054,4833.2,4833.1,18.0203355]
[1756054133518,0.7552,4833.2,4833.1,18.0203355]
[1756054134359,0.7552,4833.2,4833.1,8.7462654]
[1756054137367,0.7552,4833.2,4833.1,5.1722654]
[1756054137528,0.7552,4833.2,4833.1,8.7442654]
[1756054138375,0.7552,4833.2,4833.1,8.7432654]
[1756054139130,0.002,4833.2,4833.1,16.25102017]
[1756054139330,0.002,4833.2,4833.1,18.0850355]
[1756054139978,0.002,4833.2,4833.1,18.3711355]
[1756054140507,0.002,4833.7,4833.6,2.72885137]
[1756054140797,0.002,4833.7,4833.6,18.12790614]
[1756054141359,0.002,4833.7,4833.6,17.84180614]
[1756054141600,0.002,4833.7,4833.6,20.26978414]
[1756054141800,0.002,4833.7,4833.6,19.98368414]
[1756054142184,1e-08,4833.8,4833.7,5.72880857]
[1756054142386,1e-08,4833.8,4833.7,6.01490857]
[1756054146013,0.75320001,4833.8,4833.7,5.72880857]
[1756054146166,0.75320001,4833.8,4833.7,11.43968657]
[1756054147067,0.75320001,4833.8,4833.7,7.87068657]
[1756054147264,0.75320001,4833.8,4833.7,5.06880857]
[1756054147468,0.75320001,4833.8,4833.7,8.63680857]
[1756054147692,0.75320001,4833.8,4833.7,5.63680857]
[1756054148269,0.75320001,4833.8,4833.7,8.63680857]
[1756054149584,0.30340001,4833.8,4833.7,8.63680857]
[1756054149785,1e-08,4833.8,4833.7,10.77868657]
[1756054150113,1e-08,4833.8,4833.7,11.72478657]
[1756054150277,0.75320001,4833.8,4833.7,4.21068657]
[1756054150473,0.75320001,4833.8,4833.7,5.63580857]
[1756054151702,0.75320001,4833.8,4833.7,2.06880857]
[1756054151876,0.75320001,4833.8,4833.7,5.63580857]
[1756054152489,0.30340001,4833.8,4833.7,5.63580857]
[1756054152688,1e-08,4833.8,4833.7,9.58190857]
[1756054152997,1e-08,4833.8,4833.7,11.72378657]
[1756054153318,1e-08,4833.8,4833.7,11.82698657]
[1756054156836,0.30340001,4833.8,4833.7,13.72288657]
[1756054157340,1e-08,4833.8,4833.7,13.72288657]
[1756054157636,1e-08,4833.8,4833.7,14.00898657]
[1756054165250,1e-08,4833.8,4833.7,13.72288657]
[1756054165455,0.75780001,4833.8,4833.7,4.31388657]
[1756054165763,0.75780001,4833.8,4833.7,2.17200857]
[1756054165955,0.75780001,4833.8,4833.7,8.73500857]
[1756054167260,1e-08,4833.8,4833.7,9.39500857]
[1756054167463,1e-08,4833.8,4833.7,9.68630857]
[1756054167764,1e-08,4833.8,4833.7,14.01018657]
[1756054168925,0.75780001,4833.8,4833.7,13.71888657]
[1756054170342,1e-08,4833.8,4833.7,13.71888657]
[1756054170668,0.4578,4834.1,4834.0,5.72868018]
[1756054170866,0.7578,4834.1,4834.0,9.29068018]
[1756054171173,0.002,4834.2,4834.1,5.72863738]
[1756054171374,0.002,4834.3,4834.2,2.72859459]
[1756054171553,0.002,4834.3,4834.2,6.58189459]
[1756054171754,0.002,4834.3,4834.2,6.29059459]
[1756054172080,0.002,4834.3,4834.2,8.03569172]
[1756054172378,0.002,4834.3,4834.2,8.32699172]
[1756054172586,0.002,4834.3,4834.2,8.03569172]
[1756054173373,1e-08,4834.3,4834.2,8.32699172]
[1756054175357,1e-08,4834.3,4834.2,15.16412589]
[1756054175846,1e-08,4834.3,4834.2,20.34612589]
[1756054176246,1e-08,4834.3,4834.2,20.44932589]
[1756054177084,1e-08,4834.3,4834.2,20.90712589]
[1756054177290,1e-08,4834.3,4834.2,21.37292589]
[1756054177494,1e-08,4834.3,4834.2,20.90712589]
[1756054177790,1e-08,4834.3,4834.2,21.37292589]
[1756054178361,1e-08,4834.3,4834.2,11.13689172]
[1756054178556,0.022,4834.8,4834.7,5.72838066]
[1756054178893,0.022,4834.8,4834.7,19.55626631]
[1756054179098,0.022,4834.8,4834.7,19.95076631]
[1756054179292,1e-08,4834.8,4834.7,19.95076631]
[1756054179492,1e-08,4834.8,4834.7,22.59856631]
[1756054183323,1e-08,4834.8,4834.7,19.03856631]
[1756054183507,1e-08,4834.8,4834.7,22.59756631]
[1756054183896,1e-08,4834.8,4834.7,22.13176631]
[1756054184469,1e-08,4834.8,4834.7,22.59756631]
[1756054184700,1e-08,4834.8,4834.7,18.57276631]
[1756054184994,1e-08,4834.8,4834.7,22.13076631]
[1756054186009,0.022,4835.8,4835.7,2.06795293]
[1756054186341,0.3396,4835.8,4835.7,10.21595293]
[1756054186543,0.3396,4835.8,4835.7,10.31915293]